[Event "Bruges Masters 2018"]
[Site "Brugge"]
[Date "2018.08.16"]
[Round "2"]
[White "Van Foreest, Lucas"]
[Black "Ehmann, Thilo"]
[Result "1-0"]
[ECO "C54"]
[WhiteElo "2488"]
[BlackElo "2303"]
[Annotator "ChessBase"]
[PlyCount "85"]
[EventDate "2018.08.12"]
[EventType "swiss"]
[EventCountry "BEL"]
[SourceTitle "playchess.com"]
[Source "ChessBase"]
[SourceQuality "1"]
[TimeControl "5400+30"]

1. e4 {[%emt 0:00:20]} e5 {[%emt 0:00:26]} 2. Nf3 {[%emt 0:00:22]} Nc6 {[%emt 0:00:01]} 3. Bc4 {[%emt 0:00:26]} Nf6 {[%emt 0:00:59]} 4. d3 {[%emt 0:00:11]} Bc5 {[%emt 0:00:17]} 5. c3 {[%emt 0:00:09]} d6 {[%emt 0:01:26]} 6. Nbd2 {[%emt 0:00:20]} O-O {[%emt 0:02:54]} 7. h3 {[%emt 0:01:04]} a6 {[%emt 0:04:24]} 8. Bb3 {[%emt 0:00:40]} Be6 {[%emt 0:02:15]} 9. Bc2 {[%emt 0:00:04]} Ba7 {[%emt 0:01:12]} 10. Nf1 {[%emt 0:00:05]} d5 {[%emt 0:04:11]} 11. Qe2 {[%emt 0:00:03]} h6 {[%emt 0:09:37]} 12. g4 {[%emt 0:00:05]} dxe4 {[%emt 0:02:17]} 13. dxe4 {[%emt 0:00:04]} b5 {[%emt 0:02:36]} 14. Ne3 {[%emt 0:00:06]} Nd7 {[%emt 0:02:22]} 15. Rg1 {[%emt 0:04:42]} Ne7 {[%emt 0:02:47]} 16. Nf5 {[%emt 0:22:56]} Ng6 {[%emt 0:07:33]} 17. g5 {[%emt 0:04:02]} h5 {[%emt 0:06:14]} 18. Nh2 {[%emt 0:02:31]} Nc5 {[%emt 0:16:11]} 19. Qxh5 {[%emt 0:14:15]} Nd3+ {[%emt 0:00:33]} 20. Bxd3 {[%emt 0:00:07]} Qxd3 {[%emt 0:00:05]} 21. Qf3 {[%emt 0:03:22]} Rfd8 {[%emt 0:07:20]} 22. Qxd3 {[%emt 0:06:26]} Rxd3 {[%emt 0:00:06]} 23. Rg3 {[%emt 0:07:42]} Rad8 {[%emt 0:02:16]} 24. Be3 {[%emt 0:05:22]} Bxe3 {[%emt 0:02:00]} 25. Nxe3 {[%emt 0:00:28]} Rd2 {[%emt 0:01:23]} 26. Nd5 {[%emt 0:00:07]} Rxb2 {[%emt 0:00:24]} 27. O-O-O {[%emt 0:00:06]} Rxf2 {[%emt 0:02:14]} 28. Nf6+ {[%emt 0:03:46]} gxf6 {[%emt 0:00:10]} 29. Rxd8+ {[%emt 0:00:45]} Kg7 {[%emt 0:05:55]} 30. gxf6+ {[%emt 0:00:33]} Kxf6 {[%emt 0:00:25]} 31. Rf3+ {[%emt 0:02:48]} Rxf3 {[%emt 0:00:06]} 32. Nxf3 {[%emt 0:00:03]} Bxa2 {[%emt 0:02:32]} 33. Ra8 {[%emt 0:01:13]} Be6 {[%emt 0:00:38]} 34. Rxa6 {[%emt 0:00:01]} Ke7 {[%emt 0:02:04]} 35. Ra7 {[%emt 0:02:11]} Kd7 {[%emt 0:02:28]} 36. Ng5 {[%emt 0:00:12]} Bc4 {[%emt 0:01:06]} 37. Kd2 {[%emt 0:00:58]} Nh4 {[%emt 0:04:32]} 38. Ra6 {[%emt 0:02:16]} c5 {[%emt 0:01:12]} 39. Ra7+ {[%emt 0:00:06]} Ke8 {[%emt 0:01:10]} 40. Rc7 {[%emt 0:00:11]} Bf1 {[%emt 0:00:32]} 41. Nxf7 {[%emt 0:00:21]} Ng6 {[%emt 0:00:39]} 42. Nd6+ {[%emt 0:00:19]} Kf8 {[%emt 0:00:12]} 43. Rf7+ {[%emt 0:00:06]} 1-0

[Event "Bruges Masters 2018"]
[Site "Brugge"]
[Date "2018.08.16"]
[Round "2"]
[White "Lai, Hing Ting"]
[Black "Dardha, Daniel"]
[Result "1/2-1/2"]
[ECO "A47"]
[WhiteElo "2459"]
[BlackElo "2302"]
[Annotator "ChessBase"]
[PlyCount "59"]
[EventDate "2018.08.12"]
[EventType "swiss"]
[EventCountry "BEL"]
[SourceTitle "playchess.com"]
[Source "ChessBase"]
[SourceQuality "1"]
[TimeControl "5400+30"]

1. d4 {[%emt 0:00:00]} Nf6 {[%emt 0:00:55]} 2. Nf3 {[%emt 0:00:13]} e6 {[%emt 0:00:11]} 3. Bf4 {[%emt 0:00:13]} b6 {[%emt 0:00:38]} 4. e3 {[%emt 0:00:19]} Bb7 {[%emt 0:00:08]} 5. Nbd2 {[%emt 0:00:23]} Be7 {[%emt 0:00:12]} 6. h3 {[%emt 0:00:14]} O-O {[%emt 0:00:32]} 7. Bd3 {[%emt 0:00:07]} c5 {[%emt 0:00:10]} 8. O-O {[%emt 0:00:14]} cxd4 {[%emt 0:02:01]} 9. exd4 {[%emt 0:00:06]} d6 {[%emt 0:00:09]} 10. Re1 {[%emt 0:00:26]} Nbd7 {[%emt 0:00:43]} 11. c3 {[%emt 0:00:41]} Re8 {[%emt 0:01:32]} 12. Bh2 {[%emt 0:01:47]} Bf8 {[%emt 0:00:08]} 13. a4 {[%emt 0:20:02]} a6 {[%emt 0:01:02]} 14. b4 {[%emt 0:01:32]} Rc8 {[%emt 0:07:57]} 15. Qb3 {[%emt 0:08:15]} e5 {[%emt 0:11:43]} 16. dxe5 {[%emt 0:09:11]} Nxe5 {[%emt 0:01:31]} 17. Be2 {[%emt 0:05:52]} Qc7 {[%emt 0:06:35]} 18. Nxe5 {[%emt 0:11:05]} dxe5 {[%emt 0:00:34]} 19. Rac1 {[%emt 0:01:32]} Nd5 {[%emt 0:05:17]} 20. Bf3 {[%emt 0:14:39]} Nf4 {[%emt 0:02:10]} 21. Bxf4 {[%emt 0:01:55]} exf4 {[%emt 0:00:08]} 22. Rxe8 {[%emt 0:02:39]} Rxe8 {[%emt 0:00:07]} 23. Bxb7 {[%emt 0:00:54]} Qxb7 {[%emt 0:01:15]} 24. Qc4 {[%emt 0:01:30]} Qd7 {[%emt 0:02:00]} 25. Qxf4 {[%emt 0:00:31]} Qxa4 {[%emt 0:00:41]} 26. Nf3 {[%emt 0:01:11]} Qd7 {[%emt 0:04:41]} 27. Ra1 {[%emt 0:01:30]} Qd3 {[%emt 0:02:40]} 28. Qd2 {[%emt 0:04:11]} Qb5 {[%emt 0:05:11]} 29. Qa2 {[%emt 0:00:24]} a5 {[%emt 0:05:23]} 30. bxa5 {[%emt 0:00:44]} 1/2-1/2

[Event "Bruges Masters 2018"]
[Site "Brugge"]
[Date "2018.08.16"]
[Round "2"]
[White "Gonzales, Jayson"]
[Black "Nabuurs, Mart"]
[Result "1-0"]
[ECO "A14"]
[WhiteElo "2383"]
[BlackElo "2248"]
[Annotator "NA"]
[PlyCount "119"]
[EventDate "2018.08.12"]
[EventType "swiss"]
[EventCountry "BEL"]
[SourceTitle "playchess.com"]
[Source "ChessBase"]
[SourceQuality "1"]
[TimeControl "5400+30"]

1. Nf3 {[%emt 0:00:00]} d5 {[%emt 0:00:00]} 2. c4 {[%emt 0:00:00]} e6 {[%emt 0:00:47]} 3. g3 {[%emt 0:00:23]} Nf6 {[%emt 0:00:07]} 4. Bg2 {[%emt 0:00:14]} Be7 {[%emt 0:00:25]} 5. O-O {[%emt 0:00:36]} O-O {[%emt 0:00:33]} 6. b3 {[%emt 0:00:07]} b6 {[%emt 0:04:04]} 7. Bb2 {[%emt 0:02:18]} Bb7 {[%emt 0:00:22]} 8. e3 {[%emt 0:02:21]} dxc4 {[%emt 0:02:37]} 9. bxc4 {[%emt 0:00:18]} c5 {[%emt 0:00:14]} 10. Nc3 {[%emt 0:02:56]} Nc6 {[%emt 0:01:11]} 11. Qe2 {[%emt 0:00:57]} Qc8 {[%emt 0:03:13]} 12. Rad1 {[%emt 0:04:50]} Rd8 {[%emt 0:02:06]} 13. d3 {[%emt 0:00:35]} Ne8 {[%emt 0:17:41]} 14. Ne1 {[%emt 0:02:24]} a6 {[%emt 0:03:32]} 15. Ba1 {[%emt 0:10:10]} Na5 {[%emt 0:08:22]} 16. f4 {[%emt 0:01:12]} Bxg2 {[%emt 0:01:25]} 17. Nxg2 {[%emt 0:00:20]} Rb8 {[%emt 0:02:08]} 18. f5 {[%emt 0:04:52]} exf5 {[%emt 0:11:39]} 19. Nd5 {[%emt 0:00:26]} Bf8 {[%emt 0:00:16]} 20. Nh4 {[%emt 0:11:05]} Nd6 {[%emt 0:10:01]} 21. Qh5 {[%emt 0:01:50]} Qe6 {[%emt 0:01:55]} 22. e4 {[%emt 0:06:25]} f6 {[%emt 0:12:47]} 23. exf5 {[%emt 0:01:03]} Qf7 {[%emt 0:00:31]} 24. Qg4 {[%emt 0:00:10]} Ne8 {[%emt 0:00:23]} 25. Rfe1 {[%emt 0:04:38]} Rxd5 {[%emt 0:01:28]} 26. cxd5 {[%emt 0:00:24]} Qxd5 {[%emt 0:00:06]} 27. Qe2 {[%emt 0:16:41]} Nc7 {[%emt 0:00:16]} 28. Qg2 {[%emt 0:00:41]} Rd8 {[%emt 0:01:11]} 29. g4 {[%emt 0:02:44]} Nc6 {[%emt 0:01:53]} 30. Qxd5+ {[%emt 0:02:23]} Rxd5 {[%emt 0:00:13]} 31. Ng2 {[%emt 0:01:03]} Nb4 {[%emt 0:04:36]} 32. Nf4 {[%emt 0:01:25]} Rd7 {[%emt 0:01:02]} 33. Ne6 {[%emt 0:03:28]} Ncd5 {[%emt 0:03:00]} 34. Re2 {[%emt 0:00:54]} Bd6 {[%emt 0:01:28]} 35. g5 {[%emt 0:04:55]} fxg5 {[%emt 0:04:07]} 36. Nxg5 {[%emt 0:00:16]} Re7 {[%emt 0:00:42]} 37. Ne6 {[%emt 0:00:44]} Nc6 {[%emt 0:01:28]} 38. Kh1 {[%emt 0:02:50]} Nf4 {[%emt 0:00:23]} 39. Re4 {[%emt 0:03:27]} Nxe6 {[%emt 0:00:42]} 40. fxe6 {[%emt 0:00:07]} Nd8 {[%emt 0:00:25]} 41. Rde1 {[%emt 0:00:12]} Kf8 {[%emt 0:00:33]} 42. d4 {[%emt 0:00:18]} cxd4 {[%emt 0:00:29]} 43. Bxd4 {[%emt 0:01:20]} b5 {[%emt 0:00:17]} 44. Bb6 {[%emt 0:01:39]} Nb7 {[%emt 0:00:44]} 45. Rf1+ {[%emt 0:01:47]} Ke8 {[%emt 0:00:12]} 46. Rc1 {[%emt 0:00:07]} Kf8 {[%emt 0:00:28]} 47. Re2 {[%emt 0:00:55]} Bf4 {[%emt 0:00:31]} 48. Rc6 {[%emt 0:01:06]} g5 {[%emt 0:00:49]} 49. Bd4 {[%emt 0:00:20]} a5 {[%emt 0:00:28]} 50. a3 {[%emt 0:00:44]} Rc7 {[%emt 0:00:30]} 51. Rb6 {[%emt 0:00:52]} Nd6 {[%emt 0:00:32]} 52. Bf6 {[%emt 0:00:42]} Rc1+ {[%emt 0:00:34]} 53. Kg2 {[%emt 0:00:14]} Nf5 {[%emt 0:00:18]} 54. Rxb5 {[%emt 0:01:08]} Nh4+ {[%emt 0:00:14]} 55. Kf2 {[%emt 0:00:14]} Rh1 {[%emt 0:00:23]} 56. Reb2 {[%emt 0:00:33]} Rxh2+ {[%emt 0:00:15]} 57. Kf1 {[%emt 0:00:13]} Rh1+ {[%emt 0:01:21]} 58. Ke2 {[%emt 0:00:02]} g4 {[%emt 0:00:30]} 59. Rb8+ {[%emt 0:00:15]} Bxb8 {[%emt 0:00:05]} 60. Rxb8# {[%emt 0:00:02]} 1-0

[Event "Bruges Masters 2018"]
[Site "Brugge"]
[Date "2018.08.16"]
[Round "2"]
[White "Ravi, Teja S."]
[Black "Boffa, Mauro"]
[Result "1/2-1/2"]
[ECO "D02"]
[WhiteElo "2374"]
[BlackElo "2216"]
[Annotator "ChessBase"]
[PlyCount "41"]
[EventDate "2018.08.12"]
[EventType "swiss"]
[EventCountry "BEL"]
[SourceTitle "playchess.com"]
[Source "ChessBase"]
[SourceQuality "1"]
[TimeControl "5400+30"]

1. d4 {[%emt 0:00:00]} e6 {[%emt 0:00:00]} 2. Nf3 {[%emt 0:00:00]} d5 {[%emt 0:00:00]} 3. Bf4 {[%emt 0:00:11]} Bd6 {[%emt 0:00:00]} 4. Bxd6 {[%emt 0:00:07]} Qxd6 {[%emt 0:00:13]} 5. Nbd2 {[%emt 0:00:59]} Nf6 {[%emt 0:00:11]} 6. e3 {[%emt 0:00:05]} Nbd7 {[%emt 0:01:21]} 7. c4 {[%emt 0:02:15]} O-O {[%emt 0:03:28]} 8. cxd5 {[%emt 0:05:06]} exd5 {[%emt 0:00:49]} 9. Bd3 {[%emt 0:00:12]} b6 {[%emt 0:02:45]} 10. O-O {[%emt 0:00:40]} Bb7 {[%emt 0:00:22]} 11. Rc1 {[%emt 0:03:08]} c5 {[%emt 0:05:13]} 12. dxc5 {[%emt 0:01:56]} bxc5 {[%emt 0:01:47]} 13. Qb3 {[%emt 0:00:50]} c4 {[%emt 0:02:17]} 14. Qxb7 {[%emt 0:11:14]} Rfb8 {[%emt 0:00:40]} 15. Qxa8 {[%emt 0:00:38]} Rxa8 {[%emt 0:00:07]} 16. Be2 {[%emt 0:00:32]} Nc5 {[%emt 0:16:48]} 17. b3 {[%emt 0:07:00]} cxb3 {[%emt 0:01:37]} 18. axb3 {[%emt 0:02:20]} Nce4 {[%emt 0:09:38]} 19. Nxe4 {[%emt 0:06:15]} Nxe4 {[%emt 0:03:12]} 20. Nd4 {[%emt 0:01:24]} g6 {[%emt 0:03:41]} 21. Ra1 {[%emt 0:55:38]} 1/2-1/2

[Event "Bruges Masters 2018"]
[Site "Brugge"]
[Date "2018.08.16"]
[Round "2"]
[White "Bisby, Daniel L"]
[Black "Nikolov, Momchil"]
[Result "1/2-1/2"]
[ECO "B30"]
[WhiteElo "2314"]
[BlackElo "2549"]
[Annotator "ChessBase"]
[PlyCount "124"]
[EventDate "2018.08.12"]
[EventType "swiss"]
[EventCountry "BEL"]
[SourceTitle "playchess.com"]
[Source "ChessBase"]
[SourceQuality "1"]
[TimeControl "5400+30"]

1. e4 {[%emt 0:00:46]} c5 {[%emt 0:00:16]} 2. Nf3 {[%emt 0:01:54]} e6 {[%emt 0:02:22]} 3. d3 {[%emt 0:03:12]} Nc6 {[%emt 0:00:10]} 4. g3 {[%emt 0:00:19]} g6 {[%emt 0:00:09]} 5. Bg5 {[%emt 0:02:12]} Qc7 {[%emt 0:04:35]} 6. Bg2 {[%emt 0:02:10]} Bg7 {[%emt 0:00:55]} 7. Nc3 {[%emt 0:02:31]} Nge7 {[%emt 0:04:02]} 8. Qd2 {[%emt 0:04:16]} h6 {[%emt 0:14:04]} 9. Be3 {[%emt 0:01:37]} Nd4 {[%emt 0:00:33]} 10. O-O {[%emt 0:06:14]} a6 {[%emt 0:02:21]} 11. Ne1 {[%emt 0:08:08]} b6 {[%emt 0:04:08]} 12. Nd1 {[%emt 0:03:23]} Bb7 {[%emt 0:03:26]} 13. c3 {[%emt 0:02:40]} Ndc6 {[%emt 0:00:11]} 14. f4 {[%emt 0:04:46]} f5 {[%emt 0:07:03]} 15. Nf3 {[%emt 0:06:53]} d6 {[%emt 0:01:54]} 16. Bf2 {[%emt 0:01:45]} O-O {[%emt 0:01:18]} 17. Ne3 {[%emt 0:01:20]} Rad8 {[%emt 0:04:31]} 18. Qc2 {[%emt 0:09:15]} e5 {[%emt 0:05:40]} 19. Nd5 {[%emt 0:07:57]} Nxd5 {[%emt 0:00:18]} 20. exd5 {[%emt 0:00:03]} Nb8 {[%emt 0:01:44]} 21. c4 {[%emt 0:00:51]} Nd7 {[%emt 0:02:25]} 22. Rae1 {[%emt 0:01:45]} Kh7 {[%emt 0:01:46]} 23. Re2 {[%emt 0:01:37]} Rde8 {[%emt 0:05:21]} 24. Rfe1 {[%emt 0:01:13]} Qd8 {[%emt 0:00:39]} 25. Be3 {[%emt 0:03:05]} Bc8 {[%emt 0:01:51]} 26. fxe5 {[%emt 0:07:50]} Nxe5 {[%emt 0:01:57]} 27. Bf4 {[%emt 0:04:21]} Nf7 {[%emt 0:07:15]} 28. h4 {[%emt 0:02:12]} Bd7 {[%emt 0:00:59]} 29. b3 {[%emt 0:06:35]} Qf6 {[%emt 0:03:25]} 30. Rxe8 {[%emt 0:00:49]} Rxe8 {[%emt 0:00:38]} 31. Rxe8 {[%emt 0:00:04]} Bxe8 {[%emt 0:00:05]} 32. Qe2 {[%emt 0:01:14]} Bd7 {[%emt 0:00:12]} 33. Bd2 {[%emt 0:01:27]} g5 {[%emt 0:06:31]} 34. hxg5 {[%emt 0:00:17]} hxg5 {[%emt 0:00:02]} 35. Qe3 {[%emt 0:00:27]} g4 {[%emt 0:01:58]} 36. Ng5+ {[%emt 0:00:42]} Nxg5 {[%emt 0:02:44]} 37. Qxg5 {[%emt 0:00:04]} Qxg5 {[%emt 0:04:00]} 38. Bxg5 {[%emt 0:00:04]} Be5 {[%emt 0:00:18]} 39. Kf2 {[%emt 0:00:19]} b5 {[%emt 0:00:28]} 40. Bf4 {[%emt 0:01:19]} b4 {[%emt 0:01:33]} 41. Bf1 {[%emt 0:00:43]} a5 {[%emt 0:00:45]} 42. Be2 {[%emt 0:00:13]} a4 {[%emt 0:00:07]} 43. Bd1 {[%emt 0:00:15]} a3 {[%emt 0:00:14]} 44. Bc2 {[%emt 0:01:01]} Kg6 {[%emt 0:02:22]} 45. Kg2 {[%emt 0:00:33]} Kh5 {[%emt 0:00:26]} 46. Be3 {[%emt 0:00:25]} Be8 {[%emt 0:02:51]} 47. Bd2 {[%emt 0:00:52]} Bg6 {[%emt 0:00:07]} 48. Be3 {[%emt 0:00:20]} Bh7 {[%emt 0:01:59]} 49. Bd2 {[%emt 0:00:22]} Bg6 {[%emt 0:01:02]} 50. Be3 {[%emt 0:00:06]} f4 {[%emt 0:00:29]} 51. gxf4 {[%emt 0:01:12]} Bc3 {[%emt 0:00:03]} 52. Bf2 {[%emt 0:00:47]} Bd2 {[%emt 0:00:40]} 53. Bg3 {[%emt 0:00:16]} Bf5 {[%emt 0:00:24]} 54. Kf2 {[%emt 0:00:19]} Bc3 {[%emt 0:00:37]} 55. Ke2 {[%emt 0:00:17]} Bf6 {[%emt 0:00:42]} 56. Kf2 {[%emt 0:00:24]} Bd4+ {[%emt 0:00:18]} 57. Kg2 {[%emt 0:00:11]} Be3 {[%emt 0:00:10]} 58. Kf1 {[%emt 0:00:33]} Bc1 {[%emt 0:00:51]} 59. Ke2 {[%emt 0:00:10]} Bb2 {[%emt 0:00:07]} 60. Bb1 {[%emt 0:00:26]} Bf6 {[%emt 0:01:00]} 61. Bc2 {[%emt 0:00:23]} Bh4 {[%emt 0:00:11]} 62. Kf2 {[%emt 0:00:11]} Bf6 {[%emt 0:00:54]} 1/2-1/2

[Event "Bruges Masters 2018"]
[Site "Brugge"]
[Date "2018.08.16"]
[Round "2"]
[White "Townsend, M Paul"]
[Black "Koziak, Vitali"]
[Result "1-0"]
[ECO "A87"]
[WhiteElo "2246"]
[BlackElo "2476"]
[Annotator "ChessBase"]
[PlyCount "111"]
[EventDate "2018.08.12"]
[EventType "swiss"]
[EventCountry "BEL"]
[SourceTitle "playchess.com"]
[Source "ChessBase"]
[SourceQuality "1"]
[TimeControl "5400+30"]

1. d4 {[%emt 0:00:00]} f5 {[%emt 0:00:01]} 2. g3 {[%emt 0:00:32]} Nf6 {[%emt 0:00:06]} 3. Bg2 {[%emt 0:00:04]} g6 {[%emt 0:00:07]} 4. Nf3 {[%emt 0:00:12]} Bg7 {[%emt 0:00:10]} 5. O-O {[%emt 0:00:10]} O-O {[%emt 0:00:05]} 6. b3 {[%emt 0:00:49]} d6 {[%emt 0:00:22]} 7. Bb2 {[%emt 0:00:16]} e6 {[%emt 0:07:08]} 8. c4 {[%emt 0:00:59]} Ne4 {[%emt 0:08:10]} 9. Nc3 {[%emt 0:11:23]} Nxc3 {[%emt 0:03:12]} 10. Bxc3 {[%emt 0:02:45]} Nc6 {[%emt 0:00:17]} 11. Rc1 {[%emt 0:04:03]} e5 {[%emt 0:17:33]} 12. dxe5 {[%emt 0:01:03]} dxe5 {[%emt 0:00:08]} 13. Qd5+ {[%emt 0:11:39]} Kh8 {[%emt 0:00:38]} 14. Qxd8 {[%emt 0:01:26]} Rxd8 {[%emt 0:00:07]} 15. Ng5 {[%emt 0:08:35]} Re8 {[%emt 0:00:14]} 16. Bxc6 {[%emt 0:08:08]} bxc6 {[%emt 0:02:33]} 17. Rfd1 {[%emt 0:00:29]} Kg8 {[%emt 0:04:24]} 18. Ba5 {[%emt 0:02:59]} h6 {[%emt 0:06:28]} 19. Nf3 {[%emt 0:01:41]} Re7 {[%emt 0:02:17]} 20. Rd8+ {[%emt 0:02:53]} Kf7 {[%emt 0:01:05]} 21. Rcd1 {[%emt 0:02:02]} g5 {[%emt 0:04:31]} 22. Ne1 {[%emt 0:16:20]} Bf6 {[%emt 0:01:10]} 23. Nc2 {[%emt 0:02:20]} f4 {[%emt 0:11:27]} 24. e4 {[%emt 0:12:42]} a6 {[%emt 0:16:46]} 25. f3 {[%emt 0:01:03]} g4 {[%emt 0:05:03]} 26. Ne1 {[%emt 0:01:13]} h5 {[%emt 0:02:57]} 27. Bb4 {[%emt 0:00:54]} Re6 {[%emt 0:00:40]} 28. Rf8+ {[%emt 0:00:14]} Kg7 {[%emt 0:00:30]} 29. fxg4 {[%emt 0:01:06]} hxg4 {[%emt 0:00:48]} 30. Ng2 {[%emt 0:00:13]} fxg3 {[%emt 0:01:39]} 31. hxg3 {[%emt 0:00:08]} Bg5 {[%emt 0:03:07]} 32. Rdf1 {[%emt 0:00:38]} Rf6 {[%emt 0:00:37]} 33. R1xf6 {[%emt 0:00:25]} Bxf6 {[%emt 0:00:05]} 34. Ne3 {[%emt 0:00:08]} Bb7 {[%emt 0:01:34]} 35. Rxa8 {[%emt 0:00:53]} Bxa8 {[%emt 0:00:03]} 36. c5 {[%emt 0:01:07]} Bb7 {[%emt 0:00:27]} 37. Bc3 {[%emt 0:02:53]} Bc8 {[%emt 0:00:35]} 38. Nc4 {[%emt 0:00:17]} Be6 {[%emt 0:00:08]} 39. Nxe5 {[%emt 0:00:46]} a5 {[%emt 0:01:33]} 40. Kf2 {[%emt 0:00:13]} Kg8 {[%emt 0:00:24]} 41. Ke3 {[%emt 0:00:15]} a4 {[%emt 0:00:39]} 42. bxa4 {[%emt 0:00:18]} Bxa2 {[%emt 0:00:08]} 43. a5 {[%emt 0:00:33]} Bxe5 {[%emt 0:00:21]} 44. Bxe5 {[%emt 0:00:06]} Bc4 {[%emt 0:00:04]} 45. Kf4 {[%emt 0:00:31]} Be2 {[%emt 0:00:09]} 46. Bxc7 {[%emt 0:00:25]} Kf7 {[%emt 0:00:08]} 47. Ke5 {[%emt 0:00:16]} Ke7 {[%emt 0:00:11]} 48. Bd6+ {[%emt 0:00:30]} Kf7 {[%emt 0:00:18]} 49. Kf4 {[%emt 0:00:43]} Ke6 {[%emt 0:00:05]} 50. Be5 {[%emt 0:00:20]} Kd7 {[%emt 0:02:27]} 51. Kf5 {[%emt 0:00:17]} Bd3 {[%emt 0:00:14]} 52. Bf6 {[%emt 0:00:27]} Kc7 {[%emt 0:00:55]} 53. Kxg4 {[%emt 0:04:19]} Bxe4 {[%emt 0:00:07]} 54. Kg5 {[%emt 0:00:23]} Bd3 {[%emt 0:00:39]} 55. Be5+ {[%emt 0:00:26]} Kb7 {[%emt 0:00:34]} 56. g4 {[%emt 0:00:21]} 1-0

[Event "Bruges Masters 2018"]
[Site "Brugge"]
[Date "2018.08.16"]
[Round "2"]
[White "Faure, Stephane"]
[Black "Shyaamnikhil P"]
[Result "0-1"]
[ECO "B90"]
[WhiteElo "2116"]
[BlackElo "2389"]
[Annotator "ChessBase"]
[PlyCount "52"]
[EventDate "2018.08.12"]
[EventType "swiss"]
[EventCountry "BEL"]
[SourceTitle "playchess.com"]
[Source "ChessBase"]
[SourceQuality "1"]
[TimeControl "5400+30"]

1. e4 {[%emt 0:00:00]} c5 {[%emt 0:00:20]} 2. Nf3 {[%emt 0:00:00]} d6 {[%emt 0:00:39]} 3. d4 {[%emt 0:00:00]} Nf6 {[%emt 0:00:07]} 4. Nc3 {[%emt 0:00:01]} cxd4 {[%emt 0:00:05]} 5. Nxd4 {[%emt 0:00:07]} a6 {[%emt 0:00:20]} 6. Be3 {[%emt 0:00:23]} e5 {[%emt 0:00:12]} 7. Nb3 {[%emt 0:00:06]} Be6 {[%emt 0:00:08]} 8. f3 {[%emt 0:00:30]} h5 {[%emt 0:00:30]} 9. Qd2 {[%emt 0:01:00]} Nbd7 {[%emt 0:00:09]} 10. O-O-O {[%emt 0:02:15]} Rc8 {[%emt 0:02:06]} 11. Kb1 {[%emt 0:00:49]} Nb6 {[%emt 0:03:51]} 12. Na5 {[%emt 0:04:20]} Qc7 {[%emt 0:00:53]} 13. h4 {[%emt 0:03:25]} d5 {[%emt 0:10:50]} 14. Bxb6 {[%emt 0:06:25]} Qxb6 {[%emt 0:01:02]} 15. Nxd5 {[%emt 0:04:53]} Bxd5 {[%emt 0:00:27]} 16. exd5 {[%emt 0:00:55]} Bb4 {[%emt 0:00:10]} 17. Qg5 {[%emt 0:02:30]} Bxa5 {[%emt 0:00:49]} 18. Qxe5+ {[%emt 0:00:29]} Kf8 {[%emt 0:00:08]} 19. Qf5 {[%emt 0:02:55]} Rc5 {[%emt 0:02:25]} 20. c4 {[%emt 0:01:20]} Bc3 {[%emt 0:00:35]} 21. Qc2 {[%emt 0:00:29]} Be5 {[%emt 0:00:10]} 22. Be2 {[%emt 0:04:37]} g6 {[%emt 0:02:36]} 23. g4 {[%emt 0:07:17]} hxg4 {[%emt 0:00:43]} 24. fxg4 {[%emt 0:00:09]} Ne4 {[%emt 0:02:15]} 25. Rh3 {[%emt 0:02:10]} Nd6 {[%emt 0:01:44]} 26. Re3 {[%emt 0:03:22]} Rxc4 {[%emt 0:01:27]} 0-1

[Event "Bruges Masters 2018"]
[Site "Brugge"]
[Date "2018.08.16"]
[Round "2"]
[White "Barzeele, Raf"]
[Black "Mehar, Chinna Reddy C H"]
[Result "0-1"]
[ECO "A11"]
[WhiteElo "2009"]
[BlackElo "2345"]
[Annotator "NA"]
[PlyCount "108"]
[EventDate "2018.08.12"]
[EventType "swiss"]
[EventCountry "BEL"]
[SourceTitle "playchess.com"]
[Source "ChessBase"]
[SourceQuality "1"]
[TimeControl "5400+30"]

1. c4 {[%emt 0:00:00]} c6 {[%emt 0:04:22]} 2. Nf3 {[%emt 0:00:00]} d5 {[%emt 0:00:06]} 3. g3 {[%emt 0:00:03]} Bg4 {[%emt 0:00:09]} 4. Ne5 {[%emt 0:00:31]} Be6 {[%emt 0:00:33]} 5. d4 {[%emt 0:06:22]} Nd7 {[%emt 0:02:20]} 6. Bg2 {[%emt 0:02:15]} Nxe5 {[%emt 0:02:39]} 7. dxe5 {[%emt 0:00:55]} dxc4 {[%emt 0:00:10]} 8. Qc2 {[%emt 0:01:27]} Qa5+ {[%emt 0:01:08]} 9. Nc3 {[%emt 0:02:19]} Qxe5 {[%emt 0:00:33]} 10. Bf4 {[%emt 0:00:31]} Qa5 {[%emt 0:01:43]} 11. O-O {[%emt 0:00:47]} Nf6 {[%emt 0:01:13]} 12. e4 {[%emt 0:00:51]} g6 {[%emt 0:00:58]} 13. Rfe1 {[%emt 0:13:06]} Bg7 {[%emt 0:01:11]} 14. Bd2 {[%emt 0:00:27]} Qc7 {[%emt 0:01:18]} 15. Ne2 {[%emt 0:00:33]} O-O {[%emt 0:01:12]} 16. Nf4 {[%emt 0:00:16]} Qc8 {[%emt 0:01:39]} 17. Rad1 {[%emt 0:06:50]} Bg4 {[%emt 0:01:45]} 18. f3 {[%emt 0:00:37]} e5 {[%emt 0:03:53]} 19. Nxg6 {[%emt 0:08:55]} hxg6 {[%emt 0:00:37]} 20. fxg4 {[%emt 0:00:11]} Nxg4 {[%emt 0:01:24]} 21. h3 {[%emt 0:07:23]} Nf6 {[%emt 0:00:04]} 22. Qxc4 {[%emt 0:00:12]} Qc7 {[%emt 0:00:17]} 23. Be3 {[%emt 0:01:49]} Rad8 {[%emt 0:01:34]} 24. Bf3 {[%emt 0:01:24]} Nh7 {[%emt 0:09:26]} 25. Kh2 {[%emt 0:04:40]} Bf6 {[%emt 0:00:40]} 26. h4 {[%emt 0:14:15]} Kg7 {[%emt 0:01:42]} 27. Qc1 {[%emt 0:00:33]} Rxd1 {[%emt 0:02:35]} 28. Rxd1 {[%emt 0:00:10]} Rd8 {[%emt 0:00:12]} 29. Rxd8 {[%emt 0:00:38]} Bxd8 {[%emt 0:01:15]} 30. Qd2 {[%emt 0:01:43]} Be7 {[%emt 0:00:27]} 31. Bg4 {[%emt 0:01:40]} Nf6 {[%emt 0:01:03]} 32. Bf3 {[%emt 0:00:32]} b6 {[%emt 0:00:09]} 33. Bg5 {[%emt 0:02:00]} Ne8 {[%emt 0:00:35]} 34. Be3 {[%emt 0:00:37]} Bc5 {[%emt 0:01:45]} 35. Bxc5 {[%emt 0:00:53]} bxc5 {[%emt 0:00:08]} 36. h5 {[%emt 0:01:30]} Qd6 {[%emt 0:00:41]} 37. Qe2 {[%emt 0:02:52]} Qd4 {[%emt 0:00:49]} 38. hxg6 {[%emt 0:00:23]} fxg6 {[%emt 0:00:13]} 39. b3 {[%emt 0:01:18]} Nd6 {[%emt 0:01:58]} 40. Qa6 {[%emt 0:02:58]} Qf2+ {[%emt 0:04:24]} 41. Bg2 {[%emt 0:00:10]} Nxe4 {[%emt 0:00:26]} 42. Qxc6 {[%emt 0:01:17]} Qxg3+ {[%emt 0:00:11]} 43. Kg1 {[%emt 0:00:08]} Qe3+ {[%emt 0:00:16]} 44. Kh2 {[%emt 0:00:14]} Qf4+ {[%emt 0:03:01]} 45. Kg1 {[%emt 0:00:47]} Ng3 {[%emt 0:02:29]} 46. Qb5 {[%emt 0:06:07]} e4 {[%emt 0:00:59]} 47. Qc4 {[%emt 0:00:46]} Qe5 {[%emt 0:00:22]} 48. Qa6 {[%emt 0:01:51]} e3 {[%emt 0:02:55]} 49. Qa5 {[%emt 0:00:39]} e2 {[%emt 0:01:01]} 50. Kf2 {[%emt 0:00:42]} Qd4+ {[%emt 0:00:46]} 51. Kf3 {[%emt 0:00:56]} Qd1 {[%emt 0:06:34]} 52. Qc7+ {[%emt 0:00:41]} Kf6 {[%emt 0:00:23]} 53. Qc6+ {[%emt 0:01:16]} Kg5 {[%emt 0:00:25]} 54. Qxc5+ {[%emt 0:02:01]} Nf5 {[%emt 0:00:21]} 0-1